bitfinex/quotes_SOLUSD_20260115
["timestamp","ask_amount","ask_price","bid_price","bid_amount"]
[1768477927213,0.47317588,144.75,144.72,7.37048875]
[1768477927601,0.47317588,144.75,144.71,7.37071738]
[1768477927602,4.00881732,144.75,144.71,7.37071738]
[1768477927809,0.47317588,144.74,144.71,7.37071738]
[1768477928027,4.00881732,144.75,144.71,7.37071738]
[1768477929120,4.00881732,144.77,144.73,0.46061651]
[1768477929299,6.90721857,144.78,144.73,4.46943383]
[1768477929300,10.91603589,144.78,144.73,4.46943383]
[1768477929932,4.4819932,144.77,144.73,7.36978756]
[1768477930125,4.4819932,144.77,144.73,11.37860488]
[1768477930727,6.90655432,144.79,144.75,0.46061651]
[1768477930904,11.38854752,144.79,144.75,4.46943383]
[1768477931632,0.47317588,144.78,144.75,0.46061651]
[1768477932233,0.47317588,144.79,144.76,7.36860214]
[1768477932731,4.4819932,144.79,144.76,6.90798563]
[1768477933430,4.4819932,144.8,144.77,0.46061651]
[1768477934205,4.4819932,144.8,144.76,11.37741946]
[1768477934424,4.4819932,144.8,144.76,7.36860214]
[1768477937928,4.4819932,144.8,144.77,7.36810306]
[1768477938815,0.47317588,144.8,144.77,11.37692038]
[1768477939014,0.47317588,144.81,144.77,7.36810306]
[1768477939333,0.47317588,144.81,144.77,11.37692038]
[1768477939925,0.47317588,144.81,144.77,7.36810306]
[1768477940219,0.47317588,144.81,144.77,11.37692038]
[1768477940812,0.47317588,144.81,144.78,0.45910068]
[1768477941012,4.4819932,144.81,144.78,0.45910068]
[1768477948540,0.47317588,144.81,144.78,0.45910068]
[1768477948720,4.4819932,144.81,144.78,0.45910068]
[1768477950246,4.00881732,144.81,144.78,0.45910068]
[1768477950847,4.49611693,144.81,144.78,0.45910068]
[1768477951045,0.48729961,144.81,144.78,0.45910068]
[1768477951248,0.48729961,144.81,144.78,7.36612884]
[1768477951434,0.48729961,144.81,144.78,11.37494616]
[1768477954047,6.90517901,144.82,144.79,0.49998752]
[1768477954240,7.3923657,144.82,144.79,0.49998752]
[1768477955251,7.3923657,144.82,144.78,11.415833]
[1768477956763,7.3923657,144.82,144.79,0.49998752]
[1768477962855,0.48718669,144.82,144.79,11.41523951]
[1768477968458,0.48718669,144.82,144.8,0.49998752]
[1768477968758,0.48718669,144.82,144.79,10.91525199]
[1768477968958,0.48718669,144.82,144.79,11.41523951]
[1768477970551,11.40015606,144.83,144.8,0.49998752]
[1768477971757,0.4866463,144.83,144.8,11.41472334]
[1768477972055,19.96546154,144.85,144.81,4.49625786]
[1768477972255,0.1,144.87,144.83,4.49625786]
[1768477972462,7.00284896,144.87,144.83,4.49625786]
[1768477973543,7.00284896,144.87,144.83,11.40082393]
[1768477974145,0.1,144.87,144.83,11.40082393]
[1768477974345,0.56149945,144.87,144.83,11.40082393]
[1768477975362,4.57031677,144.87,144.83,11.40082393]
[1768477978548,4.57031677,144.87,144.84,0.48744054]
[1768477979175,0.56149945,144.87,144.84,0.48744054]
[1768477979352,4.57031677,144.87,144.84,0.48744054]
[1768477980957,4.00881732,144.85,144.82,0.48744054]
[1768477981272,7.00284617,144.87,144.78,6.90674648]
[1768477981273,0.46149945,144.82,144.78,6.90674648]
[1768477981466,4.00881732,144.8,144.78,6.90674648]
[1768477982562,4.00881732,144.8,144.77,17.26810456]
[1768477983060,4.00881732,144.8,144.78,0.48744054]
[1768477983961,4.00881732,144.8,144.78,7.39422172]
[1768477985372,2.56360191,144.8,144.78,7.39422172]
[1768477986072,3.02510136,144.81,144.78,7.39422172]
[1768477986973,0.46149945,144.81,144.78,7.39422172]
[1768477987151,3.02510136,144.81,144.78,7.39422172]
[1768477988673,2.56360191,144.8,144.78,7.39422172]
[1768477988876,0.46149945,144.81,144.78,7.39422172]
[1768477989171,2.56360191,144.8,144.78,7.39422172]
[1768477989473,0.46149945,144.78,144.75,0.48744054]
[1768477989677,2.56360191,144.78,144.75,0.48744054]
[1768477990475,2.56360191,144.79,144.76,7.39535369]
[1768477990776,2.56360191,144.8,144.77,0.48744054]
[1768477991676,3.02510136,144.8,144.77,0.48744054]
[1768477994677,9.93120818,144.8,144.77,0.48744054]
[1768477997884,0.46149945,144.79,144.77,0.48744054]
[1768477999564,3.02510136,144.79,144.77,0.48744054]
[1768478002382,0.46149945,144.79,144.77,0.48744054]
[1768478002679,3.02510136,144.79,144.77,0.48744054]
[1768478003382,3.02510136,144.79,144.75,9.47187604]
[1768478003579,3.02510136,144.79,144.76,0.45989312]
[1768478003988,0.46149945,144.79,144.76,0.45989312]
[1768478004182,9.94066762,144.8,144.77,0.45989312]
[1768478005392,7.37706571,144.8,144.77,0.45989312]
[1768478005570,9.94066762,144.8,144.77,0.45989312]
[1768478008289,6.90587779,144.81,144.78,0.45989312]
[1768478008472,3.0345608,144.81,144.78,0.45989312]
[1768478008972,9.94021203,144.81,144.78,0.45989312]
[1768478014494,0.47095889,144.8,144.78,0.45989312]
[1768478014873,3.0345608,144.81,144.78,0.45989312]
[1768478018297,9.94023157,144.81,144.78,0.45989312]
[1768478018887,2.56360191,144.81,144.79,0.45989312]
[1768478019584,7.37584233,144.83,144.79,0.45989312]
[1768478019786,9.93944424,144.83,144.79,0.45989312]
[1768478020184,6.90488344,144.83,144.8,0.45989312]
[1768478021982,22.53881874,144.84,144.81,0.45989312]
[1768478022698,9.93881874,144.84,144.81,0.45989312]
[1768478025990,9.11685943,144.83,144.81,0.45989312]
[1768478026196,9.93881874,144.84,144.81,0.45989312]
[1768478026914,5.12787168,144.83,144.81,0.45989312]
[1768478027101,9.93881874,144.84,144.81,0.45989312]
[1768478027502,3.0345608,144.83,144.81,0.45989312]
[1768478027695,3.0345608,144.83,144.81,0.42989312]
[1768478028586,2.56360191,144.83,144.81,0.39989312]
[1768478029213,7.37521683,144.84,144.81,0.39989312]
[1768478029507,5.12703055,144.83,144.81,0.39989312]
[1768478029708,9.93881874,144.84,144.81,0.39989312]
[1768478029895,5.12703055,144.83,144.81,0.39989312]
[1768478030095,9.93881874,144.84,144.81,0.39989312]
[1768478030296,5.12703461,144.83,144.81,0.39989312]
[1768478030510,0.47095889,144.83,144.81,0.39989312]
[1768478030907,9.93921257,144.83,144.8,0.46857844]
[1768478032201,5.12639572,144.82,144.8,0.46857844]
[1768478032407,9.93921257,144.83,144.8,0.46857844]
[1768478032815,9.93921257,144.83,144.79,0.46857844]
[1768478032816,5.60766271,144.82,144.79,0.46857844]
[1768478033121,3.04504872,144.82,144.79,0.46857844]
[1768478035215,9.95019487,144.82,144.79,0.46857844]
[1768478038319,3.04504872,144.82,144.79,0.46857844]
[1768478038624,0.48144681,144.82,144.79,0.46857844]
[1768478040017,6.90483469,144.83,144.8,0.46857844]
[1768478040225,9.94988341,144.83,144.8,0.46857844]
[1768478040924,3.04504872,144.84,144.8,0.46857844]
[1768478042104,3.04504872,144.84,144.81,0.46857844]
[1768478042306,3.04504872,144.84,144.81,0.43857844]
[1768478042914,9.94932682,144.84,144.81,0.43857844]
[1768478045303,11.38950744,144.84,144.81,0.43857844]
[1768478046933,7.38572491,144.84,144.81,0.43857844]
[1768478047128,11.38950744,144.84,144.81,0.43857844]
[1768478047316,4.00378253,144.83,144.81,0.43857844]
[1768478047523,9.12528577,144.83,144.81,0.43857844]
[1768478047724,4.00378253,144.83,144.81,0.43857844]
[1768478048636,7.38572491,144.84,144.81,0.43857844]
[1768478048927,11.38950744,144.84,144.81,0.43857844]
[1768478049318,5.12180252,144.83,144.81,0.43857844]
[1768478049524,4.00378253,144.83,144.81,0.43857844]
[1768478050829,0.48144681,144.82,144.79,7.37492938]
[1768478051414,4.00378253,144.83,144.8,0.46857844]
[1768478051636,4.48522934,144.83,144.8,0.46857844]
[1768478052210,6.9042781,144.84,144.79,7.37492938]
[1768478052211,9.60843059,144.82,144.79,7.37492938]
[1768478052429,0.48144681,144.82,144.79,7.37492938]
[1768478052622,4.48522934,144.82,144.79,7.37492938]
[1768478052833,4.48522934,144.82,144.8,0.46857844]
[1768478053012,4.00378253,144.82,144.8,0.46857844]
[1768478054119,11.39044754,144.82,144.76,17.26922056]
[1768478054323,11.39044754,144.82,144.78,0.46857844]
[1768478054527,5.12359467,144.81,144.78,0.46857844]
[1768478054835,11.39044754,144.82,144.78,0.46857844]
[1768478055018,5.1236818,144.81,144.78,0.46857844]
[1768478055216,11.39044754,144.82,144.78,0.46857844]
[1768478055418,5.12351937,144.81,144.79,0.46857844]
[1768478055619,4.00378253,144.81,144.79,0.46857844]
[1768478055933,7.38666501,144.82,144.79,0.46857844]
[1768478056138,11.39044754,144.82,144.79,0.46857844]
[1768478057341,4.00378253,144.81,144.79,0.46857844]
[1768478058413,11.39044754,144.82,144.79,0.46857844]
[1768478060124,4.48522934,144.82,144.79,0.46857844]
[1768478060323,4.00378253,144.82,144.79,0.46857844]
[1768478062419,4.50125273,144.82,144.79,0.46857844]
[1768478064468,11.40646316,144.82,144.79,0.46857844]
[1768478068055,5.12513055,144.81,144.79,0.46857844]
[1768478068230,11.40646316,144.82,144.79,0.46857844]
[1768478068429,5.12514796,144.81,144.79,0.46857844]
[1768478068629,11.40646316,144.82,144.79,0.46857844]
[1768478068852,5.12514796,144.81,144.79,0.46857844]
[1768478069156,11.40646316,144.82,144.79,0.46857844]
[1768478069350,5.12504304,144.81,144.79,0.46857844]
[1768478069551,11.40646316,144.82,144.79,0.46857844]
[1768478070153,0.47807434,144.8,144.77,7.38339612]
[1768478070333,4.48185687,144.79,144.76,13.07607547]
[1768478071162,4.48185687,144.79,144.77,0.47607547]
[1768478071839,0.47807434,144.79,144.77,0.47607547]
[1768478072050,4.48185687,144.79,144.77,0.47607547]
[1768478073646,4.00378253,144.79,144.77,0.47607547]
[1768478075060,10.91036261,144.79,144.77,0.47607547]
[1768478077457,0.47807434,144.78,144.76,12.6]
[1768478077652,0.47807434,144.78,144.75,7.38450075]
[1768478077858,0.47807434,144.78,144.76,0.47607547]
[1768478078056,0.47807434,144.79,144.76,0.47607547]
[1768478078242,4.48185687,144.79,144.76,0.47607547]
[1768478079034,11.38855448,144.79,144.76,0.47607547]
[1768478085371,4.00378253,144.78,144.76,0.47607547]
[1768478088152,11.38855448,144.79,144.76,0.47607547]
[1768478105388,4.00378253,144.78,144.76,0.47607547]
[1768478105880,4.4758211,144.77,144.74,13.05849159]
[1768478106189,4.41582111,144.77,144.74,13.05849159]
[1768478106769,4.41582111,144.77,144.75,0.45849159]
[1768478106970,4.00378253,144.76,144.75,0.45849159]
[1768478107293,2.56506872,144.76,144.75,0.45849159]
[1768478107794,0.47203857,144.78,144.75,0.45849159]
[1768478107989,2.56506872,144.76,144.75,0.45849159]
[1768478108289,0.47203857,144.78,144.75,0.45849159]
[1768478108495,2.56506872,144.76,144.75,0.45849159]
[1768478108694,2.56506872,144.77,144.75,0.45849159]
[1768478109073,3.03710729,144.77,144.75,0.45849159]
[1768478111195,2.56506872,144.76,144.75,0.45849159]
[1768478111592,2.56506872,144.77,144.75,0.45849159]
[1768478112594,3.03710729,144.78,144.75,0.45849159]
[1768478114781,2.56506872,144.78,144.75,0.45849159]
[1768478115089,8.168868,144.77,144.74,0.45849159]
[1768478115394,3.03710729,144.77,144.74,0.45849159]
[1768478115596,3.03710729,144.77,144.74,7.36742484]
[1768478115783,0.47203857,144.77,144.74,7.36742484]
[1768478115984,3.03710729,144.77,144.74,7.36742484]
[1768478118477,3.03710729,144.77,144.74,0.45849159]
[1768478120404,0.47203857,144.77,144.74,0.45849159]
[1768478120698,9.94464339,144.77,144.74,0.45849159]
[1768478134135,6.9075361,144.77,144.74,0.45849159]
[1768478134630,6.84753611,144.77,144.75,0.48852227]
[1768478134805,9.41260483,144.77,144.75,0.48852227]
[1768478139926,9.88625155,144.77,144.75,0.48852227]
[1768478140523,2.56506872,144.76,144.72,9.47496368]
[1768478140930,2.50506873,144.76,144.72,9.47496368]
[1768478141625,2.50506873,144.76,144.72,6.90989496]
[1768478142427,2.50506873,144.76,144.73,0.48852227]
[1768478143541,2.50506873,144.76,144.73,7.39775359]
[1768478143715,2.50506873,144.76,144.74,0.48852227]
[1768478144134,3.03871544,144.75,144.72,0.48852227]
[1768478144638,2.56506872,144.75,144.72,0.48852227]
[1768478145431,2.56506872,144.75,144.73,0.48852227]
[1768478146032,0.47364672,144.76,144.73,0.48852227]
[1768478146342,3.03871544,144.76,144.73,0.48852227]
[1768478147227,0.47364672,144.76,144.73,0.48852227]
[1768478147418,3.03871544,144.76,144.73,0.48852227]
[1768478147836,2.97871545,144.76,144.73,0.48852227]
[1768478148140,9.88689408,144.76,144.73,0.48852227]
[1768478148313,9.47324735,144.76,144.73,0.48852227]
[1768478149015,2.56506872,144.74,144.71,13.08852227]
[1768478149233,2.50506873,144.74,144.71,13.08852227]
[1768478150419,2.56506872,144.73,144.71,13.08852227]
[1768478150609,2.50506873,144.73,144.71,13.08852227]
[1768478150946,3.03871544,144.74,144.71,19.99875429]
[1768478152056,0.47364672,144.74,144.71,19.99875429]
[1768478153742,0.47364672,144.74,144.71,22.56382301]
[1768478154639,0.41364673,144.74,144.71,22.56382301]
[1768478157144,9.96621756,144.76,144.72,0.46798276]
[1768478157547,9.47326303,144.76,144.72,0.46798276]
[1768478157738,0.49295453,144.75,144.72,0.46798276]
[1768478159148,0.49295453,144.75,144.72,7.3775998]
[1768478161448,0.49295453,144.75,144.73,0.46798276]
[1768478163553,3.05802325,144.76,144.73,0.46798276]
[1768478164454,0.49295453,144.76,144.73,7.37710448]
[1768478164632,3.05802325,144.76,144.73,7.37710448]
[1768478165527,0.49295453,144.73,144.7,7.37852275]
[1768478165731,2.93802327,144.73,144.7,7.37852275]
[1768478167064,2.93802327,144.73,144.71,0.46798276]
[1768478167258,2.56506872,144.73,144.71,0.46798276]
[1768478167957,0.49295453,144.74,144.71,0.46798276]
[1768478167958,3.05802325,144.74,144.71,0.46798276]
[1768478168259,3.05802325,144.74,144.71,7.3780447]
[1768478169578,4.50198676,144.74,144.71,7.3780447]
[1768478172356,0.49295453,144.74,144.71,7.3780447]
[1768478172558,0.43295454,144.74,144.71,7.3780447]
[1768478176471,0.43295454,144.74,144.71,11.38707693]
[1768478176645,0.43295454,144.74,144.72,4.00903223]
[1768478178953,0.43295454,144.74,144.71,11.38707693]
[1768478194885,0.43295454,144.74,144.71,7.3780447]
[1768478195080,0.43295454,144.74,144.71,11.38707693]
[1768478199662,0.43295454,144.74,144.71,7.3780447]
[1768478199865,0.43295454,144.74,144.71,11.38707693]
[1768478201988,0.43295454,144.74,144.71,7.3780447]
[1768478202179,0.43295454,144.74,144.71,11.38707693]
[1768478205189,0.43295454,144.74,144.72,4.00903223]
[1768478215210,0.43295454,144.74,144.71,11.38707693]
[1768478217699,0.43295454,144.74,144.72,7.39399316]
[1768478218407,0.43295454,144.74,144.72,6.90982371]
[1768478221512,10.91711662,144.76,144.73,0.48416945]
[1768478221513,0.49546695,144.76,144.73,0.48416945]
[1768478221717,7.40308315,144.77,144.74,0.48416945]
[1768478221918,7.40308315,144.77,144.74,4.49320168]
[1768478223117,0.49546695,144.76,144.74,4.49320168]
[1768478223317,0.43546696,144.76,144.74,4.49320168]
[1768478223528,0.37546697,144.76,144.74,4.49320168]
[1768478224720,0.37546697,144.76,144.73,0.48416945]
[1768478224913,7.28359861,144.76,144.73,4.49320168]
[1768478226020,7.40314042,144.77,144.74,0.48416945]
[1768478226220,0.49546695,144.76,144.73,0.48416945]
[1768478226420,0.49546695,144.76,144.73,4.49320168]
[1768478227405,7.40350115,144.76,144.73,4.49320168]
[1768478229314,7.40350115,144.76,144.73,3.04919212]
[1768478234726,0.49546695,144.75,144.71,7.39439236]
[1768478234933,0.49546695,144.75,144.72,2.56502267]
[1768478235230,0.43546696,144.75,144.72,2.56502267]
[1768478235912,0.43546696,144.75,144.72,3.04919212]
[1768478236432,0.43546696,144.75,144.72,0.48416945]
[1768478238534,0.37546697,144.75,144.72,0.48416945]
[1768478240733,0.37546697,144.75,144.72,3.04919212]
[1768478240917,6.90820437,144.76,144.73,0.45896761]
[1768478241736,6.84820438,144.76,144.73,0.45896761]
[1768478244217,6.84820438,144.76,144.73,2.56502267]
[1768478244419,6.84820438,144.76,144.74,0.47801776]
[1768478244615,12.6,144.81,144.74,0.47801776]
[1768478244934,2.56502267,144.79,144.75,0.47801776]
[1768478245740,6.90703135,144.78,144.75,0.47801776]
[1768478252938,6.90675739,144.79,144.75,3.04304043]
[1768478253445,9.47178006,144.79,144.75,3.04304043]
[1768478254443,6.90675739,144.79,144.76,0.47801776]
[1768478258435,9.471292,144.8,144.77,0.47801776]
[1768478259647,6.90626933,144.8,144.77,0.47801776]
[1768478262156,9.47062311,144.81,144.77,0.47801776]
[1768478262360,5.12904851,144.8,144.77,0.47801776]
[1768478262545,9.47062311,144.81,144.77,0.47801776]
[1768478262740,5.12913964,144.8,144.77,0.47801776]
[1768478262946,9.47062311,144.81,144.77,0.47801776]
[1768478263238,5.12914077,144.8,144.77,0.47801776]
[1768478263543,2.56502267,144.8,144.77,0.47801776]
[1768478264163,9.47152803,144.8,144.76,3.04304043]
[1768478264342,9.47152803,144.8,144.76,0.47801776]
[1768478269058,24.17006716,144.81,144.76,0.47801776]
[1768478269264,7.69365996,144.8,144.76,0.47801776]
[1768478269441,2.56502267,144.8,144.76,0.47801776]
[1768478269956,24.17006716,144.81,144.76,0.47801776]
[1768478270167,6.90655432,144.79,144.76,0.47801776]
[1768478271548,2.56502267,144.8,144.76,0.47801776]
[1768478272462,24.17006716,144.81,144.76,0.47801776]
[1768478272663,6.90655432,144.79,144.76,0.47801776]
[1768478277648,6.90655432,144.79,144.77,0.47329515]
[1768478280973,6.90655432,144.79,144.77,0.44329515]
[1768478281176,2.56502267,144.78,144.73,6.90841349]
[1768478281478,2.56502267,144.76,144.71,2.56502267]
[1768478281777,2.56502267,144.77,144.72,2.56502267]
[1768478282074,20.7218097,144.79,144.72,2.56502267]
[1768478282275,9.47294805,144.77,144.72,9.47489359]
[1768478283067,9.47294805,144.77,144.73,0.47329515]
[1768478283873,6.90703135,144.78,144.74,0.47329515]
[1768478284072,7.69566114,144.77,144.74,0.47329515]
[1768478284379,2.56502267,144.77,144.74,0.47329515]
[1768478284875,9.47294012,144.77,144.74,0.47329515]
[1768478285869,6.90703135,144.78,144.74,0.47329515]
[1768478286159,12.31294687,144.77,144.74,0.47329515]
[1768478286360,2.56502267,144.77,144.74,0.47329515]
[1768478287354,9.47205402,144.78,144.74,0.47329515]
[1768478288172,4.61821864,144.77,144.74,0.47329515]
[1768478289171,9.47205402,144.78,144.74,0.47329515]
[1768478289785,4.61837852,144.77,144.74,0.47329515]
[1768478290289,9.47205402,144.78,144.74,0.47329515]
[1768478290989,9.74730601,144.77,144.74,0.47329515]
[1768478291183,9.47205402,144.78,144.74,0.47329515]
[1768478291381,9.74667707,144.77,144.74,0.47329515]
[1768478291580,10.91450358,144.78,144.74,0.47329515]
[1768478291781,9.74666674,144.77,144.74,0.47329515]
[1768478291964,6.90756126,144.77,144.74,0.47329515]
[1768478293401,24.17386088,144.79,144.74,0.47329515]
[1768478293597,13.75279647,144.78,144.74,0.47329515]
[1768478293892,4.61629423,144.77,144.74,0.47329515]
[1768478294070,4.00747223,144.78,144.74,0.47329515]
[1768478294390,4.61628168,144.77,144.74,0.47329515]
[1768478294767,11.52397493,144.77,144.74,0.47329515]
[1768478295068,6.90769325,144.77,144.74,0.47329515]
[1768478295891,24.17386088,144.79,144.74,0.47329515]
[1768478296091,13.75172019,144.78,144.74,0.47329515]
[1768478296291,24.17386088,144.79,144.74,0.47329515]
[1768478296469,13.75131933,144.78,144.74,0.47329515]
[1768478296792,4.00747223,144.78,144.74,0.47329515]
[1768478297191,6.90750846,144.77,144.74,0.47329515]
[1768478301489,24.17386088,144.79,144.74,4.00747223]
[1768478301690,9.74241704,144.78,144.75,0.45876422]
[1768478302000,4.00747223,144.78,144.75,0.45876422]
[1768478303698,4.00747223,144.76,144.73,0.47369963]
[1768478304081,10.91498069,144.77,144.73,0.47369963]
[1768478305895,10.91498069,144.77,144.74,0.47369963]
[1768478306689,6.90750846,144.77,144.74,0.47369963]
[1768478307402,6.90715684,144.78,144.74,4.00747223]
[1768478307590,6.90715684,144.78,144.75,0.47369963]
[1768478307790,10.91462907,144.78,144.75,0.47369963]
[1768478309312,4.00747223,144.78,144.75,0.47369963]
[1768478309690,4.00747223,144.77,144.74,0.47369963]
[1768478309897,4.00747223,144.77,144.73,0.47369963]
[1768478311213,10.91563098,144.76,144.73,0.47369963]
[1768478311599,6.90815875,144.76,144.73,0.47369963]
[1768478313715,4.00747223,144.77,144.73,0.47369963]
[1768478314613,24.17460974,144.78,144.71,0.47369963]
[1768478314614,4.00747223,144.74,144.71,0.47369963]
[1768478315004,4.00747223,144.75,144.71,0.47369963]
[1768478315626,4.00747223,144.74,144.71,0.47369963]
[1768478318230,10.91670588,144.74,144.71,0.47369963]
[1768478321201,4.00747223,144.75,144.71,0.47369963]
[1768478324626,6.90941753,144.73,144.71,0.47369963]
[1768478335739,6.90894016,144.74,144.71,0.47369963]
[1768478340317,17.27169749,144.75,144.71,0.47369963]
[1768478340626,21.27916972,144.75,144.71,0.47369963]
[1768478342046,28.18763258,144.75,144.71,0.47369963]
[1768478344642,28.18763258,144.75,144.71,0.44369963]
[1768478347546,4.00747223,144.74,144.71,0.44369963]
[1768478349339,21.27916972,144.75,144.71,0.41369963]
[1768478349645,28.18763258,144.75,144.71,0.41369963]
[1768478350256,4.6173728,144.74,144.71,0.41369963]
[1768478350443,8.62484503,144.74,144.71,0.41369963]
[1768478350740,4.00747223,144.74,144.71,0.41369963]
[1768478351623,10.9168666,144.74,144.71,0.41369963]
[1768478351827,10.9168666,144.74,144.7,4.00747223]
[1768478352431,10.9168666,144.74,144.7,3.97747227]
[1768478352647,10.9168666,144.74,144.69,6.91106224]
[1768478352848,11.30048365,144.74,144.7,4.00747223]
[1768478353357,9.85901031,144.74,144.7,2.56599889]
[1768478354031,9.85901031,144.74,144.71,0.46963297]
[1768478354236,9.85901031,144.74,144.71,0.01859395]
[1768478358057,7.39268308,144.73,144.7,3.03563186]
[1768478358761,7.39268308,144.73,144.7,3.00563186]
[1768478359342,7.39268308,144.73,144.69,9.47706113]
[1768478360761,7.39268308,144.73,144.7,0.49912386]
[1768478363944,7.39268308,144.73,144.7,3.06512275]
[1768478364552,6.90958162,144.73,144.71,0.45127657]
[1768478364855,6.90958162,144.73,144.71,0.00023707]
[1768478365867,0.46539431,144.73,144.7,2.56599889]
[1768478366369,7.37433447,144.74,144.7,9.47680927]
[1768478366764,7.37433447,144.74,144.71,2.56599889]
[1768478366958,7.37433447,144.74,144.71,0.45127658]
[1768478367268,7.37433447,144.74,144.71,2.56599889]
[1768478367469,7.37433447,144.74,144.71,0.05850955]
[1768478367769,7.37433447,144.74,144.71,2.56599889]
[1768478368065,7.37433447,144.74,144.71,1e-08]
[1768478369860,7.37433447,144.74,144.71,0.23307431]
[1768478370041,7.37433447,144.74,144.69,6.91132766]
[1768478370251,7.37433447,144.74,144.71,2.56599889]
[1768478370469,7.37433447,144.74,144.71,1e-08]
[1768478370859,6.90894016,144.74,144.71,1e-08]
[1768478371069,7.37359122,144.76,144.73,2.56599889]
[1768478372057,7.37359122,144.76,144.71,19.50997644]
[1768478372245,7.37359122,144.76,144.73,2.56599889]
[1768478372246,6.90819691,144.76,144.73,2.56599889]
[1768478372451,0.46539431,144.75,144.73,2.56599889]
[1768478373769,0.46539431,144.75,144.74,2.56599889]
[1768478373977,7.37359122,144.76,144.74,2.56599889]
[1768478375993,0.46539431,144.75,144.74,2.56599889]
[1768478378364,0.46539431,144.75,144.74,2.53599889]
[1768478378568,0.46539431,144.75,144.73,2.56599889]
[1768478379969,0.46539431,144.75,144.73,9.47536318]
[1768478381785,0.46539431,144.76,144.73,9.47536318]
[1768478386293,0.46539431,144.76,144.73,6.90936429]
[1768478392702,0.46539431,144.76,144.73,2.56599889]
[1768478396095,0.46539431,144.76,144.72,6.90989496]
[1768478396283,0.46539431,144.76,144.72,9.47589385]
[1768478397383,0.46539431,144.76,144.72,6.90989496]
[1768478397573,0.45034616,144.75,144.72,6.90989496]
[1768478400494,0.45034616,144.73,144.69,17.27815179]
[1768478400668,0.45034616,144.73,144.71,6.91033297]
[1768478401288,0.45034616,144.73,144.7,6.91067949]
[1768478401289,3.01634505,144.73,144.7,6.91067949]
[1768478401881,0.45034616,144.72,144.69,6.91116676]
[1768478402083,0.45034616,144.71,144.68,6.91173367]
[1768478402289,0.45034616,144.7,144.67,36.79283036]
[1768478402684,0.45034616,144.7,144.67,19.51228312]
[1768478402881,0.45034616,144.7,144.67,22.07828201]
[1768478403987,0.45034616,144.7,144.67,6.91228312]
[1768478404395,0.45034616,144.69,144.66,7.1126083]
[1768478404593,0.45034616,144.68,144.66,0.2]
[1768478404898,0.45034616,144.67,144.64,6.91364824]
[1768478405604,0.45034616,144.66,144.63,7.11400827]
[1768478406099,3.01634505,144.66,144.63,7.11400827]
[1768478406307,2.56599889,144.67,144.63,7.56464307]
[1768478406595,6.911761,144.69,144.63,7.56464307]
[1768478406900,6.911761,144.69,144.63,10.13064196]
[1768478407104,2.56599889,144.67,144.63,7.56464307]
[1768478408288,0.45034616,144.66,144.63,7.56464307]
[1768478409407,0.45034616,144.66,144.62,7.1144767]
[1768478409408,0.45034616,144.65,144.62,7.1144767]
[1768478409608,3.11973382,144.65,144.62,0.2]
[1768478409898,2.56599889,144.64,144.61,1.1101766]
[1768478410105,2.92038924,144.64,144.61,0.6595418]
[1768478410291,0.35439035,144.64,144.61,0.25655386]
[1768478410492,2.92038924,144.64,144.61,0.25655386]
[1768478410705,0.40298794,144.63,144.61,0.70718866]
[1768478410903,0.40298794,144.63,144.61,0.38479831]
[1768478411078,0.45034616,144.62,144.6,9.48129761]
[1768478411285,0.45034616,144.62,144.6,9.21021803]
[1768478411492,0.45034616,144.62,144.6,6.40630686]
[1768478411694,0.58646007,144.61,144.59,7.11594442]
[1768478411897,0.58646007,144.61,144.59,6.98263051]
[1768478412201,0.45034616,144.61,144.59,6.98263051]
[1768478412400,0.45034616,144.61,144.59,6.87597938]
[1768478412817,0.45034616,144.61,144.59,6.79065848]
[1768478413106,2.56599889,144.64,144.59,9.30973087]
[1768478413325,0.45034616,144.67,144.62,0.4130936]
[1768478413509,0.45034616,144.66,144.62,4.42683866]
[1768478413684,0.45034616,144.66,144.62,4.3968057]
[1768478413984,0.45034616,144.66,144.62,4.37277933]
[1768478414511,0.45034616,144.66,144.62,4.01374506]
[1768478415210,0.45034616,144.68,144.64,6.91333554]
[1768478415505,0.45034616,144.68,144.64,10.9270806]
[1768478415686,0.45034616,144.67,144.63,10.92778582]
[1768478416086,0.45034616,144.67,144.63,11.37842062]
[1768478416507,0.45034616,144.67,144.63,6.91404076]
[1768478416688,0.45034616,144.66,144.63,6.91404076]
[1768478417602,0.45034616,144.66,144.63,10.92778582]
[1768478417788,0.45034616,144.66,144.63,11.37842062]
[1768478418507,0.45034616,144.67,144.63,11.37842062]
[1768478419010,0.45034616,144.67,144.64,4.46437986]
[1768478419514,0.45034616,144.67,144.64,11.37792094]
[1768478422213,0.45034616,144.67,144.64,7.36417588]
[1768478422402,0.45034616,144.67,144.64,11.37792094]
[1768478423513,0.45085709,144.68,144.64,10.92728614]
[1768478423699,0.45085709,144.7,144.66,4.01374506]
[1768478423904,0.45085709,144.7,144.66,4.47730572]
[1768478424998,0.45085709,144.7,144.67,4.47730572]
[1768478425722,0.45085709,144.7,144.67,11.38953272]
[1768478426212,0.45085709,144.7,144.67,7.37578766]
[1768478426808,4.46460215,144.71,144.68,0.46356066]
[1768478427207,0.45085709,144.7,144.67,7.37578766]
[1768478427400,0.45085709,144.69,144.66,6.91255392]
[1768478427600,0.45085709,144.68,144.65,0.46356066]